fUST/lending_fUST_20250926
["ID","MTS","AMOUNT","RATE_DAILY","PERIOD"]
[387712370,1758821453952,-480.0,0.00020982,2]
[387712371,1758821453961,-480.0,0.00020982,2]
[387712372,1758821453971,-480.0,0.00020982,2]
[387712373,1758821453983,-530.11,0.00020982,2]
[387712374,1758821453993,-538.39,0.00020982,2]
[387712375,1758821454003,-480.0,0.00020982,2]
[387712376,1758821454013,-480.0,0.00020982,2]
[387712377,1758821454023,-480.0,0.00020982,2]
[387712378,1758821454033,-1104.37053472,0.00020985,2]
[387712379,1758821454043,-480.0,0.00020985,2]
[387712380,1758821454053,-480.0,0.00020985,2]
[387712381,1758821454062,-480.0,0.00020985,2]
[387712382,1758821454072,-480.0,0.00020985,2]
[387712383,1758821454082,-493.58,0.00020985,2]
[387712384,1758821454091,-480.0,0.00020985,2]
[387712385,1758821454112,-480.0,0.00020985,2]
[387712386,1758821454122,-480.0,0.00020985,2]
[387712387,1758821454132,-480.0,0.00020985,2]
[387712388,1758821454142,-480.0,0.00020985,2]
[387712389,1758821454152,-627.38,0.00020985,2]
[387712390,1758821454162,-480.0,0.00020985,2]
[387712391,1758821454172,-480.0,0.00020985,2]
[387712392,1758821454181,-480.0,0.00020985,2]
[387712393,1758821454192,-324.66409079,0.00020985,2]
[387712394,1758821454202,-597.47,0.00020985,2]
[387712395,1758821454212,-480.0,0.00020985,2]
[387712396,1758821454222,-480.0,0.00020985,2]
[387712397,1758821454233,-480.0,0.00020985,2]
[387712398,1758821454243,-600.0,0.00020988,2]
[387712399,1758821454254,-1189.57,0.00020988,2]
[387712400,1758821454264,-340.20104849,0.00020988,2]
[387712401,1758821454274,-1381.68,0.00020988,2]
[387712402,1758821454284,-569.79,0.00020988,2]
[387712403,1758821454295,-1382.36,0.00020988,2]
[387712404,1758821454305,-601.36041641,0.00020988,2]
[387712405,1758821454316,-1231.49,0.0002099,2]
[387712406,1758821454325,-480.0,0.0002099,2]
[387712407,1758821454335,-654.16,0.0002099,2]
[387712408,1758821454345,-543.13,0.00020991,2]
[387712409,1758821454355,-480.0,0.00020991,2]
[387712410,1758821454365,-480.0,0.00020991,2]
[387712411,1758821454375,-273.35057942,0.00020991,2]
[387712412,1758821454385,-480.0,0.00020991,2]
[387712413,1758821454395,-4028.8,0.00020991,2]
[387712414,1758821454407,-706.04,0.00020991,2]
[387712415,1758821454417,-592.59,0.00020992,2]
[387712416,1758821454427,-480.0,0.00020992,2]
[387712417,1758821454436,-209.0,0.00020999,2]
[387712418,1758821454447,-10000.0,0.00021,5]
[387712419,1758821454457,-523.42257976,0.00021,10]
[387712420,1758821454467,-3312.76196267,0.00021001,2]
[387712421,1758821454476,-209.0,0.00021005,2]
[387712422,1758821454490,-300.0,0.00021065,2]
[387712430,1758821454500,-260.0,0.00021065,2]
[387712431,1758821454599,-1425.02822656,0.00021133,2]
[387712432,1758821454609,-1200.0,0.00021172,2]
[387712434,1758821454619,-480.0,0.00021253,2]
[387712436,1758821454629,-1034.36,0.00021253,2]
[387712438,1758821454639,-579.04,0.00021256,2]
[387712440,1758821454649,-865.63,0.00021256,2]
[387712442,1758821454660,-480.0,0.00021256,2]
[387712444,1758821454669,-1624.91,0.00021256,2]
[387712446,1758821454679,-480.0,0.00021256,2]
[387712448,1758821454688,-480.0,0.00021256,2]
[387712449,1758821454697,-480.0,0.00021256,2]
[387712451,1758821454707,-530.11,0.00021256,2]
[387712453,1758821454717,-538.39,0.00021256,2]
[387712455,1758821454726,-480.0,0.00021256,2]
[387712456,1758821454738,-480.0,0.00021256,2]
[387712459,1758821454748,-480.0,0.00021256,2]
[387712460,1758821454757,-209.0,0.00021258,2]
[387712462,1758821454766,-480.0,0.00021259,2]
[387712463,1758821454776,-480.0,0.00021259,2]
[387712465,1758821454786,-393.44625007,0.00021259,2]
[387712467,1758821454795,-225.27305001,0.00021259,2]
[387712469,1758821454805,-480.0,0.00021259,2]
[387712471,1758821454815,-480.0,0.00021259,2]
[387712472,1758821454824,-627.38,0.00021259,2]
[387712473,1758821454834,-480.0,0.00021259,2]
[387712475,1758821454843,-480.0,0.00021259,2]
[387712477,1758821454853,-480.0,0.00021259,2]
[387712479,1758821454863,-597.47,0.00021259,2]
[387712481,1758821454873,-480.0,0.00021259,2]
[387712483,1758821454883,-480.0,0.00021259,2]
[387712485,1758821454892,-480.0,0.00021259,2]
[387712487,1758821454902,-1189.57,0.00021262,2]
[387712489,1758821454912,-1381.68,0.00021262,2]
[387712491,1758821454921,-569.79,0.00021262,2]
[387712493,1758821454931,-1382.36,0.00021262,2]
[387712496,1758821454941,-1231.49,0.00021264,2]
[387712497,1758821454950,-480.0,0.00021264,2]
[387712499,1758821454960,-654.16,0.00021264,2]
[387712501,1758821454969,-480.0,0.00021265,2]
[387712503,1758821454978,-480.0,0.00021265,2]
[387712505,1758821454989,-480.0,0.00021265,2]
[387712508,1758821454999,-4028.8,0.00021265,2]
[387712509,1758821455008,-706.04,0.00021265,2]
[387712511,1758821455018,-592.59,0.00021266,2]
[387712513,1758821455027,-480.0,0.00021266,2]
[387712515,1758821455036,-509.55569589,0.00021268,2]
[387712517,1758821455046,-155.0,0.00021277,2]
[387712519,1758821455055,-327.74066599,0.00021295,2]
[387712521,1758821455065,-500.0,0.00021295,2]
[387712523,1758821455074,-168.63354543,0.00021315,2]
[387712525,1758821455084,-2000.0,0.00021316,2]
[387712527,1758821455093,-623.56628512,0.00021316,2]
[387712529,1758821455103,-503.24530109,0.00021316,2]
[387712531,1758821455113,-209.0,0.00021446,2]
[387712533,1758821455123,-209.0,0.00021453,2]
[387712535,1758821455133,-232.3399632,0.00021527,2]
[387712538,1758821455143,-1034.36,0.00021527,2]
[387712540,1758821455153,-209.0,0.00021529,2]
[387712542,1758821455162,-579.04,0.0002153,2]
[387712544,1758821455172,-865.63,0.0002153,2]
[387712546,1758821455181,-1624.91,0.0002153,2]
[387712548,1758821455190,-588.34,0.0002153,2]
[387712550,1758821455200,-480.0,0.0002153,2]
[387712552,1758821455209,-480.0,0.0002153,2]
[387712554,1758821455220,-530.11,0.0002153,2]
[387712556,1758821455233,-538.39,0.0002153,2]
[387712558,1758821455242,-480.0,0.0002153,2]
[387712560,1758821455251,-480.0,0.0002153,2]
[387712562,1758821455261,-480.0,0.0002153,2]
[387712564,1758821455270,-480.0,0.00021533,2]
[387712566,1758821455279,-480.0,0.00021533,2]
[387712567,1758821455289,-480.0,0.00021533,2]
[387712570,1758821455299,-627.38,0.00021533,2]
[387712572,1758821455308,-480.0,0.00021533,2]
[387712574,1758821455317,-480.0,0.00021533,2]
[387712576,1758821455327,-480.0,0.00021533,2]
[387712578,1758821455337,-597.47,0.00021533,2]
[387712580,1758821455346,-480.0,0.00021533,2]
[387712582,1758821455355,-480.0,0.00021533,2]
[387712584,1758821455365,-480.0,0.00021533,2]
[387712585,1758821455374,-1189.57,0.00021536,2]
[387712587,1758821455384,-1381.68,0.00021536,2]
[387712589,1758821455394,-569.79,0.00021536,2]
[387712591,1758821455405,-1382.36,0.00021536,2]
[387712593,1758821455416,-1231.49,0.00021538,2]
[387712596,1758821455426,-480.0,0.00021538,2]
[387712597,1758821455435,-654.16,0.00021538,2]
[387712600,1758821455444,-480.0,0.00021539,2]
[387712602,1758821455455,-480.0,0.00021539,2]
[387712604,1758821455465,-480.0,0.00021539,2]
[387712606,1758821455475,-4028.8,0.00021539,2]
[387712607,1758821455486,-706.04,0.00021539,2]
[387712609,1758821455496,-592.59,0.0002154,2]
[387712611,1758821455505,-480.0,0.0002154,2]
[387712612,1758821455515,-360.0,0.00021613,2]
[387712613,1758821455525,-2200.3102941,0.00021706,2]
[387712614,1758821455535,-209.0,0.00021726,2]
[387712615,1758821455545,-209.0,0.00021748,2]
[387712616,1758821455555,-209.0,0.00021801,2]
[387712617,1758821455565,-1034.36,0.00021801,2]
[387712618,1758821455576,-579.04,0.00021804,2]
[387712619,1758821455585,-865.63,0.00021804,2]
[387712620,1758821455595,-1624.91,0.00021804,2]
[387712621,1758821455604,-535.2,0.00021804,2]
[387712622,1758821455614,-480.0,0.00021804,2]
[387712623,1758821455624,-530.11,0.00021804,2]
[387712624,1758821455633,-538.39,0.00021804,2]
[387712625,1758821455643,-480.0,0.00021804,2]
[387712626,1758821455653,-480.0,0.00021804,2]
[387712627,1758821455663,-480.0,0.00021804,2]
[387712628,1758821455672,-270.6071762,0.00021807,2]
[387712629,1758821455682,-480.0,0.00021807,2]
[387712630,1758821455691,-480.0,0.00021807,2]
[387712631,1758821455700,-627.38,0.00021807,2]
[387712632,1758821455710,-480.0,0.00021807,2]
[387712633,1758821455721,-325.63010335,0.00021807,2]
[387712634,1758821455733,-597.47,0.00021807,2]
[387712635,1758821455742,-480.0,0.00021807,2]
[387712636,1758821455752,-269.76237865,0.00021807,2]
[387712637,1758821455761,-480.0,0.00021807,2]
[387712638,1758821455771,-1189.57,0.0002181,2]
[387712639,1758821455781,-1381.68,0.0002181,2]
[387712640,1758821455790,-569.79,0.0002181,2]
[387712641,1758821455800,-1382.36,0.0002181,2]
[387712642,1758821455809,-1231.49,0.00021812,2]
[387712643,1758821455819,-480.0,0.00021812,2]
[387712644,1758821455885,-654.16,0.00021812,2]
[387712645,1758821455895,-189.57,0.00021813,2]
[387712646,1758821455904,-480.0,0.00021813,2]
[387712647,1758821455914,-480.0,0.00021813,2]
[387712648,1758821455924,-4028.8,0.00021813,2]
[387712649,1758821455933,-706.04,0.00021813,2]
[387712650,1758821455943,-592.59,0.00021814,2]
[387712651,1758821455952,-480.0,0.00021814,2]
[387712652,1758821455961,-6719.24998898,0.0002185,2]
[387712653,1758821455971,-209.0,0.00021861,2]
[387712654,1758821455982,-480.0,0.00021917,2]
[387712655,1758821455992,-480.0,0.00021917,2]
[387712656,1758821456001,-480.0,0.00021917,2]
[387712657,1758821456011,-480.0,0.00021917,2]
[387712658,1758821456020,-480.0,0.00021917,2]
[387712659,1758821456029,-150.0,0.00021918,2]
[387712660,1758821456039,-151.0,0.00021918,2]
[387712662,1758821456048,-156.93,0.00021948,2]
[387712664,1758821456057,-209.0,0.00021978,2]
[387712666,1758821456066,-993.46550188,0.00022044,2]
[387712668,1758821456075,-209.0,0.00022045,2]
[387712670,1758821456086,-1034.36,0.00022075,2]
[387712672,1758821456095,-579.04,0.00022078,2]
[387712674,1758821456105,-865.63,0.00022078,2]
[387712676,1758821456114,-1624.91,0.00022078,2]
[387712678,1758821456124,-480.0,0.00022078,2]
[387712681,1758821456134,-530.11,0.00022078,2]
[387712682,1758821456143,-538.39,0.00022078,2]
[387712684,1758821456152,-480.0,0.00022078,2]
[387712686,1758821456161,-480.0,0.00022078,2]
[387712688,1758821456171,-480.0,0.00022078,2]
[387712690,1758821456180,-480.0,0.00022081,2]
[387712692,1758821456189,-480.0,0.00022081,2]
[387712694,1758821456199,-627.38,0.00022081,2]
[387712696,1758821456208,-480.0,0.00022081,2]
[387712698,1758821456217,-597.47,0.00022081,2]
[387712700,1758821456226,-375.89161436,0.00022081,2]
[387712702,1758821456238,-480.0,0.00022081,2]
[387712704,1758821456247,-1189.57,0.00022084,2]
[387712706,1758821456256,-1381.68,0.00022084,2]
[387712708,1758821456266,-569.79,0.00022084,2]
[387712710,1758821456275,-1382.36,0.00022084,2]
[387712712,1758821456285,-1231.49,0.00022086,2]
[387712714,1758821456295,-654.16,0.00022086,2]
[387712716,1758821456304,-480.0,0.00022087,2]
[387712718,1758821456314,-480.0,0.00022087,2]
[387712720,1758821456324,-4028.8,0.00022087,2]
[387712722,1758821456333,-706.04,0.00022087,2]
[387712725,1758821456342,-592.59,0.00022088,2]
[387712727,1758821456351,-480.0,0.00022088,2]
[387712729,1758821456361,-1495.18,0.000221,2]
[387712731,1758821456370,-209.0,0.00022126,2]
[387712733,1758821456380,-460.0,0.00022161,2]
[387712735,1758821456389,-825.99043864,0.00022172,2]
[387712737,1758821456399,-4872.94909938,0.00022258,2]
[387712739,1758821456413,-1059.0661421,0.00022334,2]
[387712741,1758821456422,-1034.36,0.00022349,2]
[387712743,1758821456432,-579.04,0.00022352,2]
[387712745,1758821456442,-865.63,0.00022352,2]
[387712747,1758821456453,-1624.91,0.00022352,2]
[387712749,1758821456463,-480.0,0.00022352,2]
[387712751,1758821456472,-530.11,0.00022352,2]
[387712753,1758821456483,-538.39,0.00022352,2]
[387712755,1758821456493,-480.0,0.00022352,2]
[387712757,1758821456502,-480.0,0.00022352,2]
[387712759,1758821456512,-480.0,0.00022352,2]
[387712761,1758821456522,-480.0,0.00022355,2]
[387712763,1758821456531,-586.41229623,0.00022355,2]
[387712765,1758821456540,-627.38,0.00022355,2]
[387712767,1758821456550,-480.0,0.00022355,2]
[387712769,1758821456559,-597.47,0.00022355,2]
[387712771,1758821456569,-480.0,0.00022355,2]
[387712773,1758821456579,-1189.57,0.00022358,2]
[387712774,1758821456588,-1381.68,0.00022358,2]
[387712776,1758821456597,-569.79,0.00022358,2]
[387712779,1758821456606,-1382.36,0.00022358,2]
[387712781,1758821456615,-209.0,0.0002236,2]
[387712782,1758821456624,-1231.49,0.0002236,2]
[387712783,1758821456634,-654.16,0.0002236,2]
[387712784,1758821456643,-480.0,0.00022361,2]
[387712786,1758821456654,-480.0,0.00022361,2]
[387712788,1758821456664,-4028.8,0.00022361,2]
[387712790,1758821456673,-706.04,0.00022361,2]
[387712792,1758821456683,-592.59,0.00022362,2]
[387712794,1758821456692,-480.0,0.00022362,2]
[387712796,1758821456702,-160.0,0.00022381,2]
[387712798,1758821456711,-160.0,0.00022381,2]
[387712800,1758821456720,-160.0,0.00022381,2]
[387712802,1758821456729,-160.0,0.00022381,2]
[387712804,1758821456743,-160.0,0.00022381,2]
[387712806,1758821456753,-233.66602051,0.00022381,2]
[387712808,1758821456762,-209.0,0.00022383,2]
[387712810,1758821456771,-209.0,0.00022386,2]
[387712812,1758821456780,-209.0,0.00022398,2]
[387712814,1758821456790,-209.0,0.00022412,2]
[387712816,1758821456799,-150.0,0.00022414,2]
[387712818,1758821456809,-209.0,0.00022421,2]
[387712820,1758821456818,-300.0,0.00022466,2]
[387712822,1758821456828,-500.0,0.00022543,2]
[387712824,1758821456837,-1034.36,0.00022623,2]
[387712826,1758821456847,-579.04,0.00022626,2]
[387712828,1758821456857,-865.63,0.00022626,2]
[387712830,1758821456866,-1624.91,0.00022626,2]
[387712832,1758821456876,-480.0,0.00022626,2]
[387712834,1758821456886,-530.11,0.00022626,2]
[387712836,1758821456896,-538.39,0.00022626,2]
[387712838,1758821456905,-480.0,0.00022626,2]
[387712840,1758821456915,-480.0,0.00022626,2]
[387712842,1758821456924,-480.0,0.00022626,2]
[387712844,1758821456934,-209.0,0.00022629,2]
[387712846,1758821456943,-184.91081962,0.00022629,2]
[387712848,1758821456952,-627.38,0.00022629,2]
[387712850,1758821456962,-480.0,0.00022629,2]
[387712852,1758821456971,-597.47,0.00022629,2]
[387712854,1758821456981,-480.0,0.00022629,2]
[387712856,1758821456992,-1189.57,0.00022632,2]
[387712864,1758821457059,-1381.68,0.00022632,2]
[387712866,1758821457069,-569.79,0.00022632,2]
[387712868,1758821457078,-1382.36,0.00022632,2]
[387712870,1758821457088,-1231.49,0.00022634,2]
[387712872,1758821457098,-654.16,0.00022634,2]
[387712874,1758821457107,-480.0,0.00022635,2]
[387712876,1758821457117,-480.0,0.00022635,2]
[387712878,1758821457126,-4028.8,0.00022635,2]
[387712880,1758821457135,-706.04,0.00022635,2]
[387712882,1758821457145,-592.59,0.00022636,2]
[387712884,1758821457154,-480.0,0.00022636,2]
[387712886,1758821457163,-560.0,0.00022709,2]
[387712888,1758821457173,-500.0,0.00022716,2]
[387712890,1758821457182,-500.0,0.00022723,2]
[387712892,1758821457190,-151.0,0.00022725,3]
[387712894,1758821457200,-151.0,0.00022725,3]
[387712896,1758821457209,-151.0,0.00022725,3]
[387712898,1758821457218,-151.0,0.00022725,3]
[387712900,1758821457229,-151.0,0.00022725,3]
[387712902,1758821457239,-163.94982091,0.00022725,3]
[387712904,1758821457250,-166.0,0.00022725,3]
[387712906,1758821457261,-209.0,0.00022757,2]
[387712908,1758821457270,-209.0,0.00022768,2]
[387712910,1758821457280,-209.0,0.00022838,2]
[387712911,1758821457290,-1034.36,0.00022897,2]
[387712912,1758821457299,-579.04,0.000229,2]
[387712913,1758821457309,-865.63,0.000229,2]
[387712914,1758821457319,-1624.91,0.000229,2]
[387712915,1758821457329,-330.95765582,0.000229,2]
[387712916,1758821457339,-530.11,0.000229,2]
[387712917,1758821457350,-538.39,0.000229,2]
[387712918,1758821457361,-571.31350663,0.000229,2]
[387712919,1758821457370,-261.1099704,0.000229,2]
[387712920,1758821457380,-480.0,0.000229,2]
[387712921,1758821457390,-627.38,0.00022903,2]
[387712922,1758821457400,-239.97969776,0.00022903,2]
[387712923,1758821457414,-597.47,0.00022903,2]
[387712924,1758821457425,-480.0,0.00022903,2]
[387712925,1758821457435,-1189.57,0.00022906,2]
[387712926,1758821457445,-1381.68,0.00022906,2]
[387712927,1758821457455,-569.79,0.00022906,2]
[387712928,1758821457465,-1382.36,0.00022906,2]
[387712929,1758821457475,-1231.49,0.00022908,2]
[387712930,1758821457489,-654.16,0.00022908,2]
[387712931,1758821457499,-480.0,0.00022909,2]
[387712932,1758821457508,-480.0,0.00022909,2]
[387712933,1758821457518,-4028.8,0.00022909,2]
[387712934,1758821457528,-706.04,0.00022909,2]
[387712935,1758821457537,-592.59,0.0002291,2]
[387712936,1758821457547,-480.0,0.0002291,2]
[387712937,1758821457556,-500.0,0.0002291,2]
[387712938,1758821457566,-500.0,0.00022992,2]
[387712939,1758821457576,-160.0,0.00023,2]
[387712940,1758821457586,-233.66602051,0.00023,3]
[387712941,1758821457595,-450.0,0.00023014,2]
[387712942,1758821457605,-500.0,0.00023057,2]
[387712943,1758821457615,-500.0,0.0002308,2]
[387712944,1758821457624,-993.46550188,0.00023116,2]
[387712945,1758821457634,-1034.36,0.00023171,2]
[387712946,1758821457643,-579.04,0.00023174,2]
[387712947,1758821457654,-865.63,0.00023174,2]
[387712948,1758821457663,-1624.91,0.00023174,2]
[387712949,1758821457673,-530.11,0.00023174,2]
[387712950,1758821457683,-538.39,0.00023174,2]
[387712951,1758821457693,-480.0,0.00023174,2]
[387712952,1758821457703,-627.38,0.00023177,2]
[387712953,1758821457712,-597.47,0.00023177,2]
[387712954,1758821457722,-480.0,0.00023177,2]
[387712955,1758821457733,-1189.57,0.0002318,2]
[387712956,1758821457743,-1381.68,0.0002318,2]
[387712957,1758821457752,-569.79,0.0002318,2]
[387712958,1758821457762,-1382.36,0.0002318,2]
[387712959,1758821457771,-1231.49,0.00023182,2]
[387712960,1758821457781,-654.16,0.00023182,2]
[387712961,1758821457790,-480.0,0.00023183,2]
[387712962,1758821457799,-480.0,0.00023183,2]
[387712963,1758821457809,-4028.8,0.00023183,2]
[387712964,1758821457819,-706.04,0.00023183,2]
[387712965,1758821457828,-592.59,0.00023184,2]
[387712966,1758821457838,-405.55,0.00023184,2]
[387712967,1758821457847,-660.0,0.00023257,2]
[387712968,1758821457856,-500.0,0.00023279,2]
[387712969,1758821457865,-500.0,0.00023432,2]
[387712970,1758821457875,-1034.36,0.00023445,2]
[387712971,1758821457884,-579.04,0.00023448,2]
[387712972,1758821457894,-865.63,0.00023448,2]
[387712973,1758821457903,-1624.91,0.00023448,2]
[387712974,1758821457913,-530.11,0.00023448,2]
[387712975,1758821457923,-538.39,0.00023448,2]
[387712976,1758821457933,-480.0,0.00023448,2]
[387712977,1758821457943,-627.38,0.00023451,2]
[387712978,1758821457953,-597.47,0.00023451,2]
[387712979,1758821457962,-480.0,0.00023451,2]
[387712980,1758821457972,-1189.57,0.00023454,2]
[387712981,1758821457984,-1381.68,0.00023454,2]
[387712982,1758821457994,-569.79,0.00023454,2]
[387712983,1758821458003,-1382.36,0.00023454,2]
[387712984,1758821458013,-1231.49,0.00023456,2]
[387712985,1758821458022,-654.16,0.00023456,2]
[387712986,1758821458031,-480.0,0.00023457,2]
[387712987,1758821458041,-480.0,0.00023457,2]
[387712988,1758821458051,-4028.8,0.00023457,2]
[387712989,1758821458060,-706.04,0.00023457,2]
[387712990,1758821458070,-592.59,0.00023458,2]
[387712991,1758821458080,-500.0,0.00023511,2]
[387712992,1758821458090,-300.81962974,0.00023562,2]
[387712993,1758821458099,-2877.4892886,0.00023564,2]
[387712994,1758821458167,-500.0,0.00023587,2]
[387712995,1758821458177,-1034.36,0.00023719,2]
[387712996,1758821458187,-579.04,0.00023722,2]
[387712997,1758821458196,-865.63,0.00023722,2]
[387712998,1758821458206,-1624.91,0.00023722,2]
[387712999,1758821458216,-530.11,0.00023722,2]
[387713000,1758821458226,-538.39,0.00023722,2]
[387713001,1758821458236,-480.0,0.00023722,2]
[387713002,1758821458247,-627.38,0.00023725,2]
[387713003,1758821458256,-597.47,0.00023725,2]
[387713004,1758821458266,-480.0,0.00023725,2]
[387713005,1758821458275,-1189.57,0.00023728,2]
[387713006,1758821458285,-1381.68,0.00023728,2]
[387713007,1758821458299,-569.79,0.00023728,2]
[387713008,1758821458309,-1382.36,0.00023728,2]
[387713009,1758821458319,-1231.49,0.0002373,2]
[387713010,1758821458328,-654.16,0.0002373,2]
[387713011,1758821458338,-480.0,0.00023731,2]
[387713012,1758821458348,-389.74686977,0.00023731,2]
[387713013,1758821458432,-90.25313023,0.00023731,2]
[387713014,1758821458443,-4028.8,0.00023731,2]
[387713015,1758821458453,-706.04,0.00023731,2]
[387713016,1758821458462,-592.59,0.00023732,2]
[387713017,1758821458472,-500.0,0.00023798,2]
[387713018,1758821458484,-3000.0,0.000238,2]
[387713019,1758821458494,-920.0,0.00023805,2]
[387713020,1758821458503,-3000.0,0.0002381,2]
[387713021,1758821458520,-3000.0,0.0002382,2]
[387713022,1758821458535,-3000.0,0.0002383,2]
[387713023,1758821458551,-3000.0,0.0002384,2]
[387713024,1758821458560,-3000.0,0.0002385,2]
[387713025,1758821458570,-3000.0,0.0002386,2]
[387713026,1758821458579,-3000.0,0.0002387,2]
[387713027,1758821458588,-3000.0,0.0002388,2]
[387713028,1758821458598,-3000.0,0.0002389,2]
[387713029,1758821458608,-3000.0,0.000239,2]
[387713030,1758821458617,-3000.0,0.0002391,2]
[387713031,1758821458627,-3000.0,0.0002392,2]
[387713032,1758821458635,-3000.0,0.0002393,2]
[387713033,1758821458645,-3554.873962,0.0002394,2]
[387713034,1758821458655,-1034.36,0.00023993,2]
[387713035,1758821458664,-579.04,0.00023996,2]
[387713036,1758821458674,-865.63,0.00023996,2]
[387713037,1758821458683,-1624.91,0.00023996,2]
[387713038,1758821458693,-530.11,0.00023996,2]
[387713039,1758821458702,-538.39,0.00023996,2]
[387713040,1758821458711,-480.0,0.00023996,2]
[387713041,1758821458721,-627.38,0.00023999,2]
[387713042,1758821458730,-597.47,0.00023999,2]
[387713043,1758821458742,-480.0,0.00023999,2]
[387713044,1758821458751,-1189.57,0.00024002,2]
[387713045,1758821458761,-1381.68,0.00024002,2]
[387713046,1758821458771,-569.79,0.00024002,2]
[387713047,1758821458780,-1382.36,0.00024002,2]
[387713048,1758821458790,-1231.49,0.00024004,2]
[387713049,1758821458799,-654.16,0.00024004,2]
[387713050,1758821458808,-480.0,0.00024005,2]
[387713051,1758821458818,-480.0,0.00024005,2]
[387713052,1758821458827,-4028.8,0.00024005,2]
[387713053,1758821458836,-706.04,0.00024005,2]
[387713054,1758821458845,-592.59,0.00024006,2]
[387713055,1758821458854,-2200.3102941,0.0002406,2]
[387713056,1758821458864,-815.04663803,0.00024152,2]
[387713057,1758821458873,-500.0,0.00024164,2]
[387713058,1758821458882,-993.46550188,0.00024187,2]
[387713059,1758821458891,-1034.36,0.00024267,2]
[387713060,1758821458901,-579.04,0.0002427,2]
[387713061,1758821458911,-865.63,0.0002427,2]
[387713062,1758821458921,-1624.91,0.0002427,2]
[387713063,1758821458930,-530.11,0.0002427,2]
[387713064,1758821458940,-538.39,0.0002427,2]
[387713065,1758821458949,-584.55102301,0.0002427,2]
[387713066,1758821458959,-627.38,0.00024273,2]
[387713067,1758821458968,-597.47,0.00024273,2]
[387713068,1758821458979,-474.38,0.00024273,2]
[387713069,1758821458990,-1189.57,0.00024276,2]
[387713070,1758821458999,-1381.68,0.00024276,2]
[387713071,1758821459009,-569.79,0.00024276,2]
[387713072,1758821459019,-1382.36,0.00024276,2]
[387713073,1758821459028,-1231.49,0.00024278,2]
[387713074,1758821459038,-654.16,0.00024278,2]
[387713075,1758821459047,-480.0,0.00024279,2]
[387713076,1758821459057,-480.0,0.00024279,2]
[387713077,1758821459067,-4028.8,0.00024279,2]
[387713078,1758821459077,-706.04,0.00024279,2]
[387713079,1758821459143,-592.59,0.0002428,2]
[387713080,1758821459152,-151.0,0.000243,6]
[387713081,1758821459162,-500.0,0.00024335,2]
[387713082,1758821459171,-1495.18,0.000244,2]
[387713083,1758821459181,-150.0,0.00024452,2]
[387713084,1758821459190,-6719.24998898,0.00024454,2]
[387713085,1758821459200,-827.878,0.00024478,7]
[387713086,1758821459210,-642.0546458,0.00024505,2]
[387713087,1758821459219,-1034.36,0.00024541,2]
[387713088,1758821459229,-579.04,0.00024544,2]
[387713089,1758821459243,-865.63,0.00024544,2]
[387713090,1758821459252,-1624.91,0.00024544,2]